[Event "Early-Titled-Tuesday-Blitz-March-05-2024"]
[Site "Chess.com"]
[Date "2024.03.05"]
[Round "5"]
[White "viktorskliarov"]
[Black "marik_spb"]
[Result "1-0"]
[WhiteElo "2603"]
[BlackElo "2453"]
[TimeControl "180+1"]
[EndTime "8:59:05 PST"]
[Termination "viktorskliarov won by resignation"]

1. e4 {[%clk 0:03:00.9]} 1... e6 {[%clk 0:03:00.3]} 2. d4 {[%clk 0:03:00.5]}
2... d5 {[%clk 0:03:00.8]} 3. e5 {[%clk 0:03:01.1]} 3... c5 {[%clk 0:03:00.9]}
4. c3 {[%clk 0:03:01.8]} 4... Nc6 {[%clk 0:03:01.5]} 5. Nf3 {[%clk 0:03:02.4]}
5... Qb6 {[%clk 0:03:02]} 6. a3 {[%clk 0:03:02.9]} 6... Bd7 {[%clk 0:02:51.6]}
7. b4 {[%clk 0:03:02.2]} 7... cxd4 {[%clk 0:02:50.9]} 8. cxd4 {[%clk 0:03:03.1]}
8... a5 {[%clk 0:02:48]} 9. b5 {[%clk 0:03:00.1]} 9... Na7 {[%clk 0:02:48.3]}
10. a4 {[%clk 0:02:57]} 10... Ne7 {[%clk 0:02:34.2]} 11. Bd3 {[%clk 0:02:52.1]}
11... Nf5 {[%clk 0:02:34.4]} 12. Bxf5 {[%clk 0:02:51.7]} 12... exf5 {[%clk
0:02:35.3]} 13. O-O {[%clk 0:02:50.1]} 13... Be7 {[%clk 0:01:58.4]} 14. Nc3
{[%clk 0:02:45.4]} 14... Be6 {[%clk 0:01:56]} 15. Ba3 {[%clk 0:02:44.3]} 15...
Rc8 {[%clk 0:01:50.2]} 16. Bxe7 {[%clk 0:02:08.3]} 16... Kxe7 {[%clk 0:01:51.1]}
17. Ne2 {[%clk 0:02:08.8]} 17... Rc4 {[%clk 0:01:42.1]} 18. Nd2 {[%clk
0:01:53.3]} 18... Rb4 {[%clk 0:01:04.1]} 19. Nb3 {[%clk 0:01:43.5]} 19... Rc8
{[%clk 0:01:01]} 20. Nc5 {[%clk 0:01:43.1]} 20... Rc4 {[%clk 0:00:22.3]} 21. Qd2
{[%clk 0:01:33.7]} 21... Qc7 {[%clk 0:00:15.6]} 22. Qg5+ {[%clk 0:00:58.7]}
22... Kf8 {[%clk 0:00:15.5]} 23. Nf4 {[%clk 0:00:57.3]} 23... Qe7 {[%clk
0:00:14.2]} 24. Qh5 {[%clk 0:00:45.9]} 24... Kg8 {[%clk 0:00:14.1]} 25. Rfd1
{[%clk 0:00:27.9]} 25... Rc7 {[%clk 0:00:11.1]} 26. b6 {[%clk 0:00:27.6]} 26...
R7xc5 {[%clk 0:00:11.2]} 27. dxc5 {[%clk 0:00:24.4]} 27... Nc6 {[%clk 0:00:11]}
28. Nxd5 {[%clk 0:00:24.5]} 28... Bxd5 {[%clk 0:00:10.2]} 29. Rxd5 {[%clk
0:00:24.2]} 29... Rxc5 {[%clk 0:00:10.6]} 30. Rxc5 {[%clk 0:00:23.5]} 30... g6
{[%clk 0:00:09.7]} 31. Qd1 {[%clk 0:00:16.1]} 31... Qxc5 {[%clk 0:00:10.1]} 32.
Qd6 {[%clk 0:00:16.7]} 32... Qxb6 {[%clk 0:00:09.8]} 33. e6 {[%clk 0:00:15.3]}
33... fxe6 {[%clk 0:00:10.7]} 34. Qxe6+ {[%clk 0:00:15.7]} 34... Kg7 {[%clk
0:00:11.4]} 35. Rd1 {[%clk 0:00:14.9]} 35... Kh6 {[%clk 0:00:08.8]} 36. h4
{[%clk 0:00:14.5]} 36... Qb2 {[%clk 0:00:07]} 37. Qe3+ {[%clk 0:00:10.4]} 37...
Kg7 {[%clk 0:00:04.9]} 38. Rd7+ {[%clk 0:00:10.4]} 38... Kf6 {[%clk 0:00:04.7]}
39. Rxh7 {[%clk 0:00:09.5]} 39... Ne5 {[%clk 0:00:03.3]} 40. Qg5+ {[%clk
0:00:08.7]} 40... Ke6 {[%clk 0:00:03.9]} 41. Qe7+ {[%clk 0:00:08.3]} 41... Kd5
{[%clk 0:00:04.5]} 42. Qxb7+ {[%clk 0:00:08.6]} 42... Qxb7 {[%clk 0:00:04.5]}
43. Rxb7 {[%clk 0:00:09.2]} 43... Kc4 {[%clk 0:00:02.1]} 44. Rb5 {[%clk
0:00:09.4]} 44... Nc6 {[%clk 0:00:01.8]} 45. g3 {[%clk 0:00:09.5]} 45... Kd4
{[%clk 0:00:01.9]} 46. Kg2 {[%clk 0:00:09.9]} 46... Ke4 {[%clk 0:00:01.9]} 47.
f3+ {[%clk 0:00:10]} 47... Kd4 {[%clk 0:00:02]} 48. g4 {[%clk 0:00:10.1]} 48...
fxg4 {[%clk 0:00:02.1]} 49. fxg4 {[%clk 0:00:11]} 49... Ne5 {[%clk 0:00:02.6]}
50. Kg3 {[%clk 0:00:10.8]} 50... Nc4 {[%clk 0:00:02.7]} 51. h5 {[%clk
0:00:10.6]} 51... gxh5 {[%clk 0:00:02.1]} 52. gxh5 {[%clk 0:00:11.5]} 52... Ne3
{[%clk 0:00:02.5]} 53. Rxa5 {[%clk 0:00:11.3]} 53... Ke4 {[%clk 0:00:01.5]} 54.
h6 {[%clk 0:00:11.7]} 54... Nf5+ {[%clk 0:00:01.9]} 55. Rxf5 {[%clk 0:00:11.5]}
55... Kxf5 {[%clk 0:00:02.8]} 56. h7 {[%clk 0:00:12.2]} 1-0

[Event "Early-Titled-Tuesday-Blitz-March-05-2024"]
[Site "Chess.com"]
[Date "2024.03.05"]
[Round "5"]
[White "FoxOnTheRun97"]
[Black "cristiano78"]
[Result "1-0"]
[WhiteElo "2641"]
[BlackElo "2273"]
[TimeControl "180+1"]
[EndTime "8:59:06 PST"]
[Termination "FoxOnTheRun97 won by resignation"]

1. d4 {[%clk 0:02:59.8]} 1... Nf6 {[%clk 0:02:43]} 2. Bg5 {[%clk 0:02:58.3]}
2... c5 {[%clk 0:02:42.7]} 3. d5 {[%clk 0:02:57.2]} 3... Qb6 {[%clk 0:02:42]} 4.
Nc3 {[%clk 0:02:56.7]} 4... Qxb2 {[%clk 0:02:41.4]} 5. Bd2 {[%clk 0:02:57.2]}
5... Qb6 {[%clk 0:02:40.8]} 6. e4 {[%clk 0:02:57.7]} 6... d6 {[%clk 0:02:40.9]}
7. f4 {[%clk 0:02:58]} 7... e6 {[%clk 0:02:39.6]} 8. Rb1 {[%clk 0:02:55.7]} 8...
Qd8 {[%clk 0:02:39.3]} 9. Bb5+ {[%clk 0:02:55.6]} 9... Bd7 {[%clk 0:02:31.6]}
10. dxe6 {[%clk 0:02:56]} 10... fxe6 {[%clk 0:02:31.6]} 11. Nf3 {[%clk
0:02:55.4]} 11... Bc6 {[%clk 0:02:30.1]} 12. Bxc6+ {[%clk 0:02:43.7]} 12... bxc6
{[%clk 0:02:27.1]} 13. e5 {[%clk 0:02:39.6]} 13... Nd5 {[%clk 0:02:26.6]} 14.
Ne4 {[%clk 0:02:26.6]} 14... Na6 {[%clk 0:02:17.1]} 15. Qe2 {[%clk 0:02:05.2]}
15... Nac7 {[%clk 0:02:12.6]} 16. c4 {[%clk 0:01:58.1]} 16... Nb4 {[%clk
0:02:11.3]} 17. O-O {[%clk 0:01:50.8]} 17... d5 {[%clk 0:02:10.9]} 18. Neg5
{[%clk 0:01:30]} 18... Qd7 {[%clk 0:02:03.1]} 19. a3 {[%clk 0:01:26.1]} 19... a5
{[%clk 0:01:53.2]} 20. axb4 {[%clk 0:01:23.9]} 20... cxb4 {[%clk 0:01:53.2]} 21.
Kh1 {[%clk 0:01:14]} 21... h6 {[%clk 0:01:51.7]} 22. Nh3 {[%clk 0:01:12.6]}
22... Bc5 {[%clk 0:01:46.5]} 23. cxd5 {[%clk 0:01:04.5]} 23... Nxd5 {[%clk
0:01:44.7]} 24. Qc4 {[%clk 0:01:01.4]} 24... Bb6 {[%clk 0:01:40]} 25. f5 {[%clk
0:00:53.6]} 25... O-O {[%clk 0:01:38.5]} 26. fxe6 {[%clk 0:00:50]} 26... Qxe6
{[%clk 0:01:38.4]} 27. Rbc1 {[%clk 0:00:50.1]} 27... Rac8 {[%clk 0:01:36.6]} 28.
Nf4 {[%clk 0:00:29.6]} 28... Nxf4 {[%clk 0:01:30.6]} 29. Bxf4 {[%clk 0:00:29.6]}
29... Qxc4 {[%clk 0:01:23]} 30. Rxc4 {[%clk 0:00:30.5]} 30... g5 {[%clk
0:01:11.9]} 31. Bc1 {[%clk 0:00:26.4]} 31... Rf5 {[%clk 0:01:09.6]} 32. h3
{[%clk 0:00:23]} 32... Kg7 {[%clk 0:00:56.6]} 33. Bb2 {[%clk 0:00:23.2]} 33...
Kg6 {[%clk 0:00:56.5]} 34. Rd1 {[%clk 0:00:22.5]} 34... Kf7 {[%clk 0:00:46.1]}
35. Rd7+ {[%clk 0:00:20.7]} 35... Ke8 {[%clk 0:00:42.7]} 36. Rd6 {[%clk
0:00:19.9]} 36... Be3 {[%clk 0:00:36]} 37. Rdxc6 {[%clk 0:00:18.7]} 37... Rxc6
{[%clk 0:00:36.1]} 38. Rxc6 {[%clk 0:00:19.4]} 38... a4 {[%clk 0:00:36.3]} 39.
Ra6 {[%clk 0:00:13.1]} 39... a3 {[%clk 0:00:36.2]} 40. Bxa3 {[%clk 0:00:13.4]}
40... bxa3 {[%clk 0:00:36.2]} 41. Rxa3 {[%clk 0:00:14.3]} 41... Bf4 {[%clk
0:00:36.1]} 42. Ra6 {[%clk 0:00:14.3]} 42... Rf7 {[%clk 0:00:33.7]} 43. Rxh6
{[%clk 0:00:13.2]} 43... Re7 {[%clk 0:00:33.9]} 44. Rg6 {[%clk 0:00:11.4]} 44...
Bxe5 {[%clk 0:00:33.2]} 45. Rxg5 {[%clk 0:00:10.5]} 45... Bf4 {[%clk 0:00:32.6]}
46. Rf5 {[%clk 0:00:10.4]} 46... Bb8 {[%clk 0:00:32]} 47. Kg1 {[%clk 0:00:08.3]}
47... Ba7+ {[%clk 0:00:31.6]} 48. Kf1 {[%clk 0:00:08.6]} 48... Rb7 {[%clk
0:00:30.9]} 49. Re5+ {[%clk 0:00:08.6]} 49... Kd7 {[%clk 0:00:30.9]} 50. g4
{[%clk 0:00:08.8]} 50... Rb2 {[%clk 0:00:30.2]} 51. Re2 {[%clk 0:00:08.4]} 51...
Rb1+ {[%clk 0:00:29.9]} 52. Kg2 {[%clk 0:00:09]} 52... Rb3 {[%clk 0:00:28.4]}
53. h4 {[%clk 0:00:08.7]} 53... Be3 {[%clk 0:00:26]} 54. h5 {[%clk 0:00:08.5]}
54... Bf4 {[%clk 0:00:23.8]} 55. Re4 {[%clk 0:00:08.3]} 55... Bh6 {[%clk
0:00:22.1]} 56. g5 {[%clk 0:00:08.1]} 56... Rb6 {[%clk 0:00:20.2]} 57. gxh6
{[%clk 0:00:07.9]} 57... Rxh6 {[%clk 0:00:20.2]} 58. Re5 {[%clk 0:00:08.4]}
58... Kd6 {[%clk 0:00:19.9]} 59. Kg3 {[%clk 0:00:09]} 59... Rf6 {[%clk 0:00:19]}
60. Rg5 {[%clk 0:00:08.5]} 60... Ke7 {[%clk 0:00:18.6]} 61. Kg4 {[%clk
0:00:08.1]} 61... Kf8 {[%clk 0:00:18.9]} 62. Rf5 {[%clk 0:00:07.8]} 62... Rxf5
{[%clk 0:00:16.8]} 63. Kxf5 {[%clk 0:00:08.7]} 63... Kg8 {[%clk 0:00:17.7]} 64.
Kg6 {[%clk 0:00:09.1]} 64... Kh8 {[%clk 0:00:17.8]} 65. h6 {[%clk 0:00:09.5]}
1-0

[Event "Early-Titled-Tuesday-Blitz-March-05-2024"]
[Site "Chess.com"]
[Date "2024.03.05"]
[Round "5"]
[White "Binary010"]
[Black "Casper"]
[Result "1/2-1/2"]
[WhiteElo "2811"]
[BlackElo "2527"]
[TimeControl "180+1"]
[EndTime "8:59:08 PST"]
[Termination "Game drawn - insufficient material"]

1. d4 {[%clk 0:03:00.9]} 1... d5 {[%clk 0:02:59.7]} 2. Nf3 {[%clk 0:02:56.4]}
2... Nf6 {[%clk 0:03:00]} 3. g3 {[%clk 0:02:56.6]} 3... g6 {[%clk 0:02:59.9]} 4.
Bg2 {[%clk 0:02:56]} 4... Bg7 {[%clk 0:03:00.4]} 5. O-O {[%clk 0:02:56]} 5...
O-O {[%clk 0:03:01.1]} 6. c4 {[%clk 0:02:45]} 6... Nc6 {[%clk 0:03:01]} 7. cxd5
{[%clk 0:02:40]} 7... Nxd5 {[%clk 0:03:01.9]} 8. e3 {[%clk 0:02:39.7]} 8... Nb6
{[%clk 0:02:49.2]} 9. Nc3 {[%clk 0:02:32.5]} 9... e5 {[%clk 0:02:48.7]} 10. dxe5
{[%clk 0:02:26.4]} 10... Nxe5 {[%clk 0:02:47.8]} 11. Nxe5 {[%clk 0:02:24.7]}
11... Bxe5 {[%clk 0:02:44.3]} 12. Qe2 {[%clk 0:02:21.1]} 12... c6 {[%clk
0:02:44.4]} 13. Rd1 {[%clk 0:02:21]} 13... Qe7 {[%clk 0:02:44.2]} 14. e4 {[%clk
0:02:19.8]} 14... Be6 {[%clk 0:02:43.9]} 15. Be3 {[%clk 0:02:12.4]} 15... Nc4
{[%clk 0:02:40.8]} 16. Bd4 {[%clk 0:02:08.8]} 16... Rfd8 {[%clk 0:02:34.4]} 17.
Bxe5 {[%clk 0:02:07.9]} 17... Nxe5 {[%clk 0:02:35.3]} 18. h3 {[%clk 0:02:07.4]}
18... Qc5 {[%clk 0:02:28.6]} 19. Rxd8+ {[%clk 0:01:52.1]} 19... Rxd8 {[%clk
0:02:28.3]} 20. Rd1 {[%clk 0:01:52.8]} 20... Rxd1+ {[%clk 0:02:20.3]} 21. Qxd1
{[%clk 0:01:53.7]} 21... Qb6 {[%clk 0:02:18.1]} 22. b3 {[%clk 0:01:45.5]} 22...
Qa5 {[%clk 0:02:09.5]} 23. Qc2 {[%clk 0:01:13.6]} 23... Qc5 {[%clk 0:02:02.7]}
24. Kh2 {[%clk 0:01:05.9]} 24... Qd4 {[%clk 0:01:54.7]} 25. f4 {[%clk
0:00:52.3]} 25... Nd3 {[%clk 0:01:51]} 26. Qd2 {[%clk 0:00:46.8]} 26... c5
{[%clk 0:01:38.6]} 27. Nb5 {[%clk 0:00:41]} 27... Qd7 {[%clk 0:01:25.4]} 28.
Nxa7 {[%clk 0:00:39.8]} 28... b5 {[%clk 0:01:22.7]} 29. Nc6 {[%clk 0:00:28.4]}
29... c4 {[%clk 0:01:12.2]} 30. bxc4 {[%clk 0:00:25.6]} 30... bxc4 {[%clk
0:01:13.1]} 31. e5 {[%clk 0:00:24.3]} 31... Kg7 {[%clk 0:01:02.4]} 32. a4 {[%clk
0:00:22.5]} 32... Bd5 {[%clk 0:01:00.2]} 33. Bxd5 {[%clk 0:00:18.5]} 33... Qxd5
{[%clk 0:01:01.1]} 34. Qg2 {[%clk 0:00:17.7]} 34... Qc5 {[%clk 0:00:48.4]} 35.
e6 {[%clk 0:00:10.1]} 35... fxe6 {[%clk 0:00:46.3]} 36. Nd8 {[%clk 0:00:10.2]}
36... Qc8 {[%clk 0:00:38.8]} 37. Nc6 {[%clk 0:00:09]} 37... c3 {[%clk
0:00:30.9]} 38. a5 {[%clk 0:00:07.1]} 38... Qa6 {[%clk 0:00:19.1]} 39. Nd4
{[%clk 0:00:01.9]} 39... Qc4 {[%clk 0:00:18]} 40. Qe4 {[%clk 0:00:01.6]} 40...
Nb2 {[%clk 0:00:15.2]} 41. Nxe6+ {[%clk 0:00:01.7]} 41... Kf6 {[%clk 0:00:14.2]}
42. Qxc4 {[%clk 0:00:02.4]} 42... Nxc4 {[%clk 0:00:14.1]} 43. Nd4 {[%clk
0:00:03.2]} 43... Nxa5 {[%clk 0:00:14.6]} 44. Kg2 {[%clk 0:00:03.8]} 44... Nc6
{[%clk 0:00:08.7]} 45. Nc2 {[%clk 0:00:04.1]} 45... h5 {[%clk 0:00:07.9]} 46.
Kf3 {[%clk 0:00:04.7]} 46... Ne7 {[%clk 0:00:05.4]} 47. Ke4 {[%clk 0:00:05.1]}
47... Nf5 {[%clk 0:00:05.8]} 48. g4 {[%clk 0:00:04.9]} 48... Nh4 {[%clk
0:00:03.3]} 49. Kd4 {[%clk 0:00:03.1]} 49... Nf3+ {[%clk 0:00:02.8]} 50. Kxc3
{[%clk 0:00:03]} 50... Ng1 {[%clk 0:00:03.5]} 51. g5+ {[%clk 0:00:02.5]} 51...
Kf5 {[%clk 0:00:03.9]} 52. Nd4+ {[%clk 0:00:01.6]} 52... Kxf4 {[%clk 0:00:04.5]}
53. Ne6+ {[%clk 0:00:01.8]} 53... Kf5 {[%clk 0:00:04.6]} 54. Nd4+ {[%clk
0:00:01.9]} 54... Kxg5 {[%clk 0:00:05.2]} 55. Ne6+ {[%clk 0:00:01.7]} 55... Kf6
{[%clk 0:00:05.2]} 56. Nf4 {[%clk 0:00:02.2]} 56... Kf5 {[%clk 0:00:05.4]} 57.
Nd5 {[%clk 0:00:01.9]} 57... Nxh3 {[%clk 0:00:05.8]} 58. Kd3 {[%clk 0:00:02.7]}
58... g5 {[%clk 0:00:06]} 59. Kd2 {[%clk 0:00:02.7]} 59... Kg4 {[%clk
0:00:06.4]} 60. Nf6+ {[%clk 0:00:02.8]} 60... Kg3 {[%clk 0:00:07]} 61. Nxh5+
{[%clk 0:00:03]} 61... Kh2 {[%clk 0:00:07.6]} 62. Nf6 {[%clk 0:00:03]} 62... Kg3
{[%clk 0:00:06.8]} 63. Ne4+ {[%clk 0:00:02.7]} 63... Kf4 {[%clk 0:00:07.3]} 64.
Nxg5 {[%clk 0:00:03.6]} 1/2-1/2

[Event "Early-Titled-Tuesday-Blitz-March-05-2024"]
[Site "Chess.com"]
[Date "2024.03.05"]
[Round "5"]
[White "thesupera12"]
[Black "Iskusnyh"]
[Result "1-0"]
[WhiteElo "2492"]
[BlackElo "2684"]
[TimeControl "180+1"]
[EndTime "8:59:13 PST"]
[Termination "thesupera12 won by resignation"]

1. d4 {[%clk 0:02:53.2]} 1... d5 {[%clk 0:02:59]} 2. Bg5 {[%clk 0:02:53.8]} 2...
h6 {[%clk 0:02:58.5]} 3. Bh4 {[%clk 0:02:53.2]} 3... c5 {[%clk 0:02:58.1]} 4.
dxc5 {[%clk 0:02:52.8]} 4... g5 {[%clk 0:02:58.1]} 5. Bg3 {[%clk 0:02:51.7]}
5... Bg7 {[%clk 0:02:58.7]} 6. c3 {[%clk 0:02:52.4]} 6... Nf6 {[%clk 0:02:54.4]}
7. Nd2 {[%clk 0:02:49.2]} 7... Nc6 {[%clk 0:02:50]} 8. Ngf3 {[%clk 0:02:46.7]}
8... O-O {[%clk 0:02:45.4]} 9. e3 {[%clk 0:02:45.7]} 9... a5 {[%clk 0:02:32.7]}
10. Bb5 {[%clk 0:02:42.2]} 10... a4 {[%clk 0:02:29.8]} 11. Bxa4 {[%clk
0:02:37.7]} 11... Qa5 {[%clk 0:02:29.3]} 12. Bxc6 {[%clk 0:02:33]} 12... bxc6
{[%clk 0:02:28.9]} 13. O-O {[%clk 0:02:33.2]} 13... Qxc5 {[%clk 0:02:27.3]} 14.
Nb3 {[%clk 0:02:32.5]} 14... Qb6 {[%clk 0:02:25.1]} 15. Qd4 {[%clk 0:02:28.1]}
15... Qb7 {[%clk 0:02:14.7]} 16. Be5 {[%clk 0:02:26.1]} 16... Bf5 {[%clk
0:02:03]} 17. Rfc1 {[%clk 0:02:17.4]} 17... Rfc8 {[%clk 0:01:58]} 18. Qb4 {[%clk
0:02:11.3]} 18... Qa7 {[%clk 0:01:50.2]} 19. Bd4 {[%clk 0:02:06.8]} 19... Qc7
{[%clk 0:01:43.6]} 20. Be5 {[%clk 0:02:05.3]} 20... Qd8 {[%clk 0:01:40.9]} 21.
Qd4 {[%clk 0:01:50.9]} 21... Be4 {[%clk 0:01:18.3]} 22. Nfd2 {[%clk 0:01:44.8]}
22... Bg6 {[%clk 0:01:16.5]} 23. c4 {[%clk 0:01:41.6]} 23... c5 {[%clk
0:00:40.9]} 24. Nxc5 {[%clk 0:01:25.8]} 24... Rxc5 {[%clk 0:00:40.5]} 25. Bxf6
{[%clk 0:01:25]} 25... Bxf6 {[%clk 0:00:39.9]} 26. Qxc5 {[%clk 0:01:25]} 26...
Bxb2 {[%clk 0:00:40.5]} 27. Qxd5 {[%clk 0:01:22.6]} 27... Qc7 {[%clk 0:00:26.7]}
28. Qxa8+ {[%clk 0:01:19.2]} 28... Kh7 {[%clk 0:00:26.7]} 29. Qd5 {[%clk
0:01:15.9]} 29... e6 {[%clk 0:00:25.9]} 30. Qb5 {[%clk 0:01:11.7]} 30... Be5
{[%clk 0:00:25.5]} 31. Nf3 {[%clk 0:01:11.1]} 31... Bf6 {[%clk 0:00:25.4]} 32.
a4 {[%clk 0:01:08.8]} 32... g4 {[%clk 0:00:25.4]} 33. Ne1 {[%clk 0:01:06.1]}
33... Be4 {[%clk 0:00:24]} 34. c5 {[%clk 0:01:01.7]} 34... Bc6 {[%clk
0:00:21.8]} 35. Qd3+ {[%clk 0:01:00]} 35... Kg7 {[%clk 0:00:20.9]} 36. Nc2
{[%clk 0:00:56.1]} 36... Qa5 {[%clk 0:00:15.3]} 37. Nd4 {[%clk 0:00:52.3]} 37...
Bd5 {[%clk 0:00:15.5]} 38. Qc3 {[%clk 0:00:47.5]} 38... Qc7 {[%clk 0:00:13.7]}
39. a5 {[%clk 0:00:46.7]} 39... h5 {[%clk 0:00:14.1]} 40. a6 {[%clk 0:00:45.9]}
40... h4 {[%clk 0:00:15]} 41. a7 {[%clk 0:00:46]} 41... Ba8 {[%clk 0:00:14.9]}
42. Qd3 {[%clk 0:00:37.4]} 42... g3 {[%clk 0:00:14.4]} 43. hxg3 {[%clk 0:00:37]}
43... hxg3 {[%clk 0:00:13.9]} 44. f3 {[%clk 0:00:37]} 44... Qe5 {[%clk
0:00:13.6]} 45. Kf1 {[%clk 0:00:24.1]} 45... Qh5 {[%clk 0:00:13.4]} 46. Ke2
{[%clk 0:00:24.3]} 46... Qh2 {[%clk 0:00:13]} 47. Rg1 {[%clk 0:00:24.4]} 47...
e5 {[%clk 0:00:12.8]} 48. Nf5+ {[%clk 0:00:24]} 48... Kg8 {[%clk 0:00:11.1]} 49.
Qd6 {[%clk 0:00:20]} 49... e4 {[%clk 0:00:09.7]} 50. Qb8+ {[%clk 0:00:19.6]}
50... Kh7 {[%clk 0:00:09.1]} 51. Rh1 {[%clk 0:00:19.2]} 51... exf3+ {[%clk
0:00:08.9]} 52. Kd3 {[%clk 0:00:18.4]} 52... fxg2 {[%clk 0:00:08.8]} 53. Rxh2+
{[%clk 0:00:18.2]} 53... gxh2 {[%clk 0:00:09.7]} 54. Qxh2+ {[%clk 0:00:18.4]}
54... Kg6 {[%clk 0:00:09.2]} 55. Nd4 {[%clk 0:00:18.1]} 55... Bg5 {[%clk
0:00:08.4]} 56. Rg1 {[%clk 0:00:16.6]} 56... f5 {[%clk 0:00:08.2]} 57. Rxg2
{[%clk 0:00:16.9]} 57... Be4+ {[%clk 0:00:09.1]} 58. Kc3 {[%clk 0:00:16.8]}
58... Kf6 {[%clk 0:00:09]} 59. Rxg5 {[%clk 0:00:17.2]} 59... Kxg5 {[%clk
0:00:09.9]} 60. Qf4+ {[%clk 0:00:17.4]} 60... Kg6 {[%clk 0:00:09.9]} 61. Qxe4
{[%clk 0:00:18]} 1-0

[Event "Early-Titled-Tuesday-Blitz-March-05-2024"]
[Site "Chess.com"]
[Date "2024.03.05"]
[Round "5"]
[White "Hurghada"]
[Black "dosto07"]
[Result "0-1"]
[WhiteElo "2388"]
[BlackElo "2561"]
[TimeControl "180+1"]
[EndTime "8:59:14 PST"]
[Termination "dosto07 won by resignation"]

1. d4 {[%clk 0:02:58]} 1... d5 {[%clk 0:02:59.3]} 2. c4 {[%clk 0:02:56.4]} 2...
dxc4 {[%clk 0:03:00.2]} 3. Nf3 {[%clk 0:02:55.6]} 3... Nf6 {[%clk 0:03:00.5]} 4.
g3 {[%clk 0:02:56]} 4... Bf5 {[%clk 0:02:54.3]} 5. Qa4+ {[%clk 0:02:50.6]} 5...
c6 {[%clk 0:02:54.5]} 6. Qxc4 {[%clk 0:02:50]} 6... e6 {[%clk 0:02:53.7]} 7. Bg2
{[%clk 0:02:49.8]} 7... Nbd7 {[%clk 0:02:45.2]} 8. O-O {[%clk 0:02:48.9]} 8...
Be7 {[%clk 0:02:44.7]} 9. Nbd2 {[%clk 0:02:47.4]} 9... O-O {[%clk 0:02:42.7]}
10. Qb3 {[%clk 0:02:46.7]} 10... Qb6 {[%clk 0:02:41.8]} 11. Nc4 {[%clk
0:02:46.8]} 11... Qa6 {[%clk 0:02:41.4]} 12. Bf4 {[%clk 0:02:46.1]} 12... Be4
{[%clk 0:02:38.7]} 13. e3 {[%clk 0:02:41.1]} 13... Bd5 {[%clk 0:02:35.3]} 14.
Nfd2 {[%clk 0:02:39.5]} 14... Bxg2 {[%clk 0:02:20.3]} 15. Kxg2 {[%clk
0:02:39.2]} 15... c5 {[%clk 0:02:18.3]} 16. Nf3 {[%clk 0:02:23.9]} 16... Rac8
{[%clk 0:02:03.5]} 17. Rac1 {[%clk 0:02:17.6]} 17... b5 {[%clk 0:02:01.3]} 18.
Nce5 {[%clk 0:02:17.5]} 18... c4 {[%clk 0:01:59.1]} 19. Qc2 {[%clk 0:02:17.7]}
19... Nxe5 {[%clk 0:01:53.9]} 20. Nxe5 {[%clk 0:02:13.8]} 20... Qb7+ {[%clk
0:01:50.6]} 21. Kg1 {[%clk 0:02:06.6]} 21... h6 {[%clk 0:01:49.7]} 22. h4 {[%clk
0:02:06.3]} 22... Ne4 {[%clk 0:01:48]} 23. h5 {[%clk 0:01:54.6]} 23... Rfd8
{[%clk 0:01:41]} 24. f3 {[%clk 0:01:46]} 24... Nf6 {[%clk 0:01:35.5]} 25. g4
{[%clk 0:01:42.8]} 25... Nd5 {[%clk 0:01:35]} 26. Qh2 {[%clk 0:01:37.9]} 26...
Nxf4 {[%clk 0:01:29.9]} 27. exf4 {[%clk 0:01:32]} 27... Rxd4 {[%clk 0:01:28.1]}
28. Rcd1 {[%clk 0:01:27]} 28... Rcd8 {[%clk 0:01:27]} 29. Qe2 {[%clk 0:01:27.2]}
29... Bc5 {[%clk 0:01:24.1]} 30. Kg2 {[%clk 0:01:26.2]} 30... Qd5 {[%clk
0:01:16.7]} 31. Rxd4 {[%clk 0:01:19.7]} 31... Qxd4 {[%clk 0:01:16.7]} 32. Re1
{[%clk 0:01:19.8]} 32... Qd2 {[%clk 0:01:11.9]} 33. Nc6 {[%clk 0:01:11.2]} 33...
Qxe2+ {[%clk 0:01:06.5]} 34. Rxe2 {[%clk 0:01:11.4]} 34... Rd3 {[%clk 0:01:07]}
35. Ne5 {[%clk 0:01:05.1]} 35... Rd1 {[%clk 0:01:01.6]} 36. a4 {[%clk
0:01:03.7]} 36... a6 {[%clk 0:00:59.2]} 37. axb5 {[%clk 0:01:04.1]} 37... axb5
{[%clk 0:00:59.4]} 38. Rc2 {[%clk 0:01:03.9]} 38... Be3 {[%clk 0:00:57.1]} 39.
Nc6 {[%clk 0:00:52.1]} 39... Bxf4 {[%clk 0:00:50.5]} 40. Na7 {[%clk 0:00:48.5]}
40... Rd5 {[%clk 0:00:46.9]} 41. Kf1 {[%clk 0:00:44.5]} 41... Bb8 {[%clk
0:00:42.4]} 42. Nc6 {[%clk 0:00:43.5]} 42... Bf4 {[%clk 0:00:41.2]} 43. Ke2
{[%clk 0:00:40.9]} 43... Kf8 {[%clk 0:00:40.5]} 44. Nb4 {[%clk 0:00:37.8]} 44...
Rd6 {[%clk 0:00:38.2]} 45. b3 {[%clk 0:00:36]} 45... cxb3 {[%clk 0:00:36.5]} 46.
Rb2 {[%clk 0:00:36.6]} 46... Ke7 {[%clk 0:00:27.1]} 47. Rxb3 {[%clk 0:00:36.9]}
47... Rd2+ {[%clk 0:00:26.9]} 48. Kf1 {[%clk 0:00:36.4]} 48... Kf6 {[%clk
0:00:22.2]} 49. Nd3 {[%clk 0:00:34.5]} 49... Be3 {[%clk 0:00:19.2]} 50. Ke1
{[%clk 0:00:28.3]} 50... Rh2 {[%clk 0:00:18.1]} 51. Rxb5 {[%clk 0:00:26]} 51...
g6 {[%clk 0:00:12.3]} 52. hxg6 {[%clk 0:00:25.7]} 52... fxg6 {[%clk 0:00:12.7]}
53. Rb8 {[%clk 0:00:15.8]} 53... h5 {[%clk 0:00:12.1]} 54. gxh5 {[%clk
0:00:15.5]} 54... gxh5 {[%clk 0:00:12.4]} 55. Rf8+ {[%clk 0:00:14.8]} 55... Ke7
{[%clk 0:00:12.6]} 56. Rh8 {[%clk 0:00:14.1]} 56... h4 {[%clk 0:00:12.7]} 57.
Rh7+ {[%clk 0:00:13.8]} 57... Kf6 {[%clk 0:00:12.5]} 58. Kf1 {[%clk 0:00:13.3]}
58... Kg6 {[%clk 0:00:12.6]} 59. Rh8 {[%clk 0:00:13.1]} 59... h3 {[%clk
0:00:12.7]} 60. Ne5+ {[%clk 0:00:12.2]} 60... Kg7 {[%clk 0:00:12.6]} 61. Rh4
{[%clk 0:00:10.9]} 61... Rh1+ {[%clk 0:00:11.2]} 62. Ke2 {[%clk 0:00:10.6]}
62... Bg5 {[%clk 0:00:11.1]} 63. Rg4 {[%clk 0:00:09]} 63... Kf6 {[%clk
0:00:11.5]} 64. f4 {[%clk 0:00:09.1]} 64... Bxf4 {[%clk 0:00:11.1]} 65. Nd7+
{[%clk 0:00:09.1]} 65... Kf5 {[%clk 0:00:11.1]} 66. Rh4 {[%clk 0:00:08.8]} 66...
h2 {[%clk 0:00:11.3]} 67. Rh5+ {[%clk 0:00:08.5]} 67... Kg6 {[%clk 0:00:11.6]}
68. Rh3 {[%clk 0:00:08.3]} 68... Ra1 {[%clk 0:00:11.1]} 69. Kf3 {[%clk
0:00:07.9]} 69... h1=Q+ {[%clk 0:00:10.8]} 0-1